fUST/lending_fUST_20250618
["ID","MTS","AMOUNT","RATE_DAILY","PERIOD"]
[366440774,1750257043205,-15952.44357275,0.00025,2]
[366440776,1750257043215,-18444.04336094,0.00025,2]
[366440778,1750257043226,-4175.52963772,0.00025,2]
[366440780,1750257043238,-460.75525993,0.00025,2]
[366441030,1750257045958,-713.44,0.00023561,6]
[366441032,1750257045968,-713.44,0.00023835,6]
[366441034,1750257045977,-713.44,0.00024109,6]
[366441036,1750257045987,-713.44,0.00024383,6]
[366441038,1750257045998,-713.44,0.00024657,6]
[366441040,1750257046008,-713.44,0.00024931,6]
[366441042,1750257046017,-1204.04311229,0.00025,2]
[366441044,1750257046027,-224.0,0.00025,31]
[366441046,1750257046037,-224.0,0.00025,31]
[366441048,1750257046046,-224.0,0.00025,31]
[366441050,1750257046055,-224.0,0.00025,31]
[366441052,1750257046065,-224.0,0.00025,31]
[366441054,1750257046075,-1005.6276521,0.00025,120]
[366441056,1750257046084,-224.0,0.00025,31]
[366441059,1750257046093,-224.0,0.00025,31]
[366441061,1750257046103,-224.0,0.00025,31]
[366441063,1750257046112,-224.0,0.00025,31]
[366441065,1750257046121,-224.0,0.00025,31]
[366441067,1750257046131,-224.0,0.00025,31]
[366441069,1750257046140,-224.0,0.00025,31]
[366441071,1750257046149,-224.0,0.00025,31]
[366441073,1750257046159,-224.0,0.00025,31]
[366441075,1750257046168,-224.0,0.00025,31]
[366441077,1750257046178,-224.0,0.00025,31]
[366441079,1750257046188,-69912.71695862,0.00025,2]
[366441081,1750257046200,-372.0194781,0.00025,2]
[366441084,1750257046216,-3580.0,0.00025,2]
[366445228,1750257092777,500.0,0.00023,30]
[366445250,1750257215518,651.372281,0.00020658,120]
[366445251,1750257232916,166.660272,0.00020793,120]
[366445299,1750257571866,266.26,0.00024099,120]
[366445302,1750257615123,884.00089458,0.00023932,120]
[366445305,1750257654843,161.010934,0.00013699,2]
[366445309,1750257943144,-1060.66,0.00019785,2]
[366445310,1750257943167,-188.20655637,0.000199,2]
[366445311,1750257943189,-150.01,0.0002,2]
[366445312,1750257943213,-230.87065131,0.0002005,2]
[366445313,1750257950098,-69.12934869,0.0002005,2]
[366445314,1750257950121,-251.49598474,0.00020051,2]
[366445339,1750257988309,3306.76210606,0.00025221,120]
[366445341,1750258009401,10000.0,0.00023,30]
[366445344,1750258030113,-164.18811524,0.00019707,2]
[366445345,1750258035239,2001.0,0.00023,30]
[366445347,1750258046099,-15.07854476,0.00019707,2]
[366445348,1750258046122,-787.87283367,0.00019787,2]
[366445349,1750258053099,-259.28716633,0.00019787,2]
[366445350,1750258053123,-321.9092121,0.00019876,2]
[366445351,1750258053146,-300.0,0.00020049,2]
[366445352,1750258053168,-113.71740625,0.0002005,2]
[366445381,1750258152134,-1072.54,0.0001978,2]
[366445382,1750258152157,-300.0,0.00020048,2]
[366445383,1750258152181,-500.0,0.00020049,2]
[366445384,1750258152204,-486.63447708,0.00020049,2]
[366445385,1750258152225,-634.93739061,0.00020049,2]
[366445386,1750258152249,-500.0,0.00020049,2]
[366445387,1750258152272,-500.0,0.00020049,2]
[366445388,1750258152295,-500.0,0.00020049,2]
[366445389,1750258152317,-500.0,0.00020049,2]
[366445390,1750258152340,-299.25589333,0.00020049,2]
[366445391,1750258152362,-500.0,0.00020049,2]
[366445392,1750258152383,-310.76538798,0.00020049,2]
[366445393,1750258152405,-500.0,0.00020049,2]
[366445394,1750258152430,-500.0,0.00020049,2]
[366445395,1750258152451,-500.0,0.00020049,2]
[366445396,1750258152475,-500.0,0.00020049,2]
[366445397,1750258152496,-500.0,0.00020049,2]
[366445398,1750258152517,-285.49765789,0.00020049,2]
[366445399,1750258152539,-500.0,0.00020049,2]
[366445400,1750258152563,-500.0,0.00020049,2]
[366445401,1750258152586,-500.0,0.00020049,2]
[366445402,1750258152608,-240.0,0.00020049,2]
[366445403,1750258152632,-500.0,0.00020049,2]
[366445404,1750258152653,-500.0,0.00020049,2]
[366445405,1750258152677,-500.0,0.00020049,2]
[366445406,1750258152700,-500.0,0.00020049,2]
[366445407,1750258152722,-500.0,0.00020049,2]
[366445408,1750258152744,-500.0,0.00020049,2]
[366445409,1750258152765,-300.0,0.0002005,2]
[366445410,1750258152790,-5215.59039311,0.00020054,2]
[366445411,1750258153083,-19684.40960689,0.00020054,2]
[366445412,1750258153105,-444.46851048,0.00020081,2]
[366445413,1750258153126,-159.204453,0.00020181,2]
[366445414,1750258153150,-161.010934,0.00020548,2]
[366445415,1750258153172,-166.660272,0.00020793,2]
[366445416,1750258153193,-444.46851045,0.00020801,2]
[366445417,1750258153214,-1103.158837,0.00021,2]
[366445418,1750258153238,-177.72,0.00021109,2]
[366445419,1750258153260,-187.22443336,0.0002111,2]
[366445420,1750258153283,-641.58062042,0.00021111,2]
[366445421,1750258153305,-845.78193577,0.00021111,2]
[366445422,1750258153326,-160.0,0.00021111,2]
[366445423,1750258153348,-160.0,0.00021111,2]
[366445424,1750258153369,-229.98435572,0.00021111,2]
[366445425,1750258153390,-213.43818883,0.00021111,2]
[366445426,1750258153410,-160.0,0.00021111,2]
[366445427,1750258153433,-160.0,0.00021111,2]
[366445428,1750258153455,-160.0,0.00021111,2]
[366445429,1750258153474,-160.0,0.00021111,2]
[366445430,1750258153495,-160.0,0.00021128,2]
[366445431,1750258153516,-835.98428123,0.00021128,2]
[366445432,1750258153537,-424.70586748,0.0002118,2]
[366445433,1750258153557,-444.46851045,0.00021521,2]
[366445434,1750258153578,-176.75713331,0.0002155,4]
[366445435,1750258153600,-2145.08,0.00021578,2]
[366445436,1750258153621,-420.0,0.00021829,2]
[366445437,1750258153642,-420.0,0.00021831,2]
[366445438,1750258153663,-224.18,0.00021907,3]
[366445439,1750258153685,-544.73,0.00021907,10]
[366445440,1750258153706,-274.03582961,0.00021916,2]
[366445442,1750258156148,-1000.0,0.00021,21]
[366445443,1750258156172,-160.0,0.00021111,2]
[366445444,1750258156205,-1092.89151333,0.000219,6]
[366445445,1750258156228,-225.96417039,0.00021916,2]
[366445446,1750258156250,-160.0,0.00021916,2]
[366445447,1750258156272,-420.0,0.00021917,6]
[366445448,1750258156294,-334.06083632,0.00021917,6]
[366445449,1750258156316,-340.0,0.00021917,6]
[366445450,1750258156338,-460.0,0.00021917,6]
[366445451,1750258156360,-460.0,0.00021917,6]
[366445452,1750258156382,-360.0,0.00021917,6]
[366445453,1750258156404,-460.0,0.00021917,6]
[366445454,1750258156426,-461.49316756,0.00021917,6]
[366445455,1750258156448,-380.0,0.00021917,6]
[366445456,1750258156469,-410.0,0.00021917,6]
[366445457,1750258156490,-460.0,0.00021917,6]
[366445458,1750258156510,-460.0,0.00021917,6]
[366445459,1750258156531,-286.73442647,0.00021917,6]
[366445460,1750258156551,-410.0,0.00021917,6]
[366445461,1750258156572,-460.0,0.00021917,6]
[366445462,1750258156593,-460.0,0.00021917,6]
[366445463,1750258156615,-460.0,0.00021917,6]
[366445464,1750258156636,-460.0,0.00021917,6]
[366445465,1750258156658,-442.05254602,0.00021917,6]
[366445466,1750258156680,-460.0,0.00021917,6]
[366445467,1750258156701,-442.8206036,0.00021917,6]
[366445468,1750258156723,-460.0,0.00021917,6]
[366445469,1750258156744,-429.30744093,0.00021917,6]
[366445470,1750258156765,-461.56216462,0.00021917,6]
[366445471,1750258156790,-452.32726583,0.00021917,6]
[366445472,1750258156812,-460.0,0.00021917,6]
[366445473,1750258156834,-460.0,0.00021917,6]
[366445474,1750258156856,-460.0,0.00021917,6]
[366445475,1750258156878,-460.0,0.00021917,6]
[366445476,1750258156898,-460.0,0.00021917,6]
[366445477,1750258156919,-460.0,0.00021917,6]
[366445478,1750258156942,-460.0,0.00021917,6]
[366445479,1750258156964,-420.0,0.00021917,6]
[366445480,1750258156985,-460.0,0.00021917,6]
[366445481,1750258157006,-424.0,0.00021917,6]
[366445482,1750258157029,-176.76006391,0.00021917,6]
[366445483,1750258157050,-460.0,0.00021917,6]
[366445484,1750258157073,-460.0,0.00021917,6]
[366445485,1750258157095,-460.0,0.00021917,6]
[366445486,1750258157118,-460.0,0.00021917,6]
[366445487,1750258157143,-460.0,0.00021917,6]
[366445488,1750258157166,-460.0,0.00021917,6]
[366445489,1750258157190,-460.0,0.00021917,6]
[366445490,1750258157211,-460.0,0.00021917,6]
[366445491,1750258157234,-460.0,0.00021917,6]
[366445492,1750258157256,-460.0,0.00021917,6]
[366445493,1750258157279,-460.0,0.00021917,6]
[366445494,1750258157300,-460.0,0.00021917,6]
[366445495,1750258157322,-460.0,0.00021917,2]
[366445496,1750258157346,-466.69845654,0.00021917,6]
[366445497,1750258157368,-460.0,0.00021917,6]
[366445498,1750258157392,-340.0,0.00021917,6]
[366445499,1750258157415,-169.95890766,0.00021917,6]
[366445500,1750258157441,-460.0,0.00021917,6]
[366445501,1750258157463,-460.0,0.00021917,6]
[366445502,1750258157486,-460.0,0.00021917,6]
[366445503,1750258157509,-460.0,0.00021917,6]
[366445504,1750258157531,-460.0,0.00021917,6]
[366445505,1750258157553,-460.0,0.00021917,6]
[366445506,1750258157575,-467.52555373,0.00021917,6]
[366445507,1750258157597,-460.0,0.00021917,6]
[366445508,1750258157618,-392.57550503,0.00021917,6]
[366445509,1750258157639,-460.0,0.00021917,6]
[366445510,1750258157661,-460.0,0.00021917,6]
[366445511,1750258157684,-460.0,0.00021917,6]
[366445512,1750258157705,-500.0,0.00021917,6]
[366445513,1750258157727,-460.0,0.00021917,6]
[366445514,1750258157749,-270.0,0.00021917,6]
[366445515,1750258157772,-460.0,0.00021917,6]
[366445516,1750258157797,-460.0,0.00021917,6]
[366445517,1750258157819,-460.0,0.00021917,6]
[366445518,1750258157841,-440.0,0.00021917,6]
[366445519,1750258157865,-500.0,0.00021917,6]
[366445520,1750258157886,-460.0,0.00021917,6]
[366445521,1750258157908,-460.0,0.00021917,6]
[366445522,1750258157933,-460.0,0.00021917,6]
[366445523,1750258157955,-460.0,0.00021917,6]
[366445524,1750258157978,-460.0,0.00021917,6]
[366445525,1750258158001,-460.0,0.00021917,6]
[366445526,1750258158023,-460.0,0.00021917,6]
[366445527,1750258158044,-460.0,0.00021917,6]
[366445528,1750258158070,-460.0,0.00021917,6]
[366445529,1750258158093,-460.0,0.00021917,6]
[366445530,1750258158117,-480.7731394,0.00021917,6]
[366445531,1750258158140,-460.0,0.00021917,6]
[366445532,1750258158163,-443.96888299,0.00021917,6]
[366445533,1750258158190,-429.60495594,0.00021917,6]
[366445534,1750258158215,-460.0,0.00021917,6]
[366445535,1750258158240,-460.0,0.00021917,6]
[366445536,1750258158264,-460.0,0.00021917,6]
[366445537,1750258158288,-410.0,0.00021917,6]
[366445538,1750258158312,-460.0,0.00021917,6]
[366445539,1750258158335,-460.0,0.00021917,6]
[366445540,1750258158359,-260.0,0.00021917,6]
[366445541,1750258158386,-460.0,0.00021917,6]
[366445542,1750258158414,-460.0,0.00021917,6]
[366445543,1750258158439,-420.0,0.00021917,6]
[366445544,1750258158464,-460.0,0.00021917,6]
[366445545,1750258158487,-460.0,0.00021917,6]
[366445546,1750258158511,-424.80772961,0.00021917,6]
[366445547,1750258158535,-387.58597834,0.00021917,6]
[366445548,1750258158558,-460.0,0.00021917,6]
[366445549,1750258158585,-460.0,0.00021917,6]
[366445550,1750258158608,-460.0,0.00021917,6]
[366445551,1750258158634,-1610.2,0.00021917,6]
[366445552,1750258158657,-460.0,0.00021917,6]
[366445553,1750258158684,-340.0,0.00021917,6]
[366445554,1750258158707,-460.0,0.00021917,6]
[366445555,1750258158730,-417.23987646,0.00021917,6]
[366445556,1750258158756,-698.41,0.00021917,6]
[366445557,1750258158785,-460.0,0.00021917,6]
[366445558,1750258158808,-460.0,0.00021917,6]
[366445559,1750258158832,-555.4295518,0.00021917,6]
[366445560,1750258158855,-460.0,0.00021917,6]
[366445561,1750258158998,-500.0,0.00021917,6]
[366445562,1750258159022,-460.0,0.00021917,6]
[366445563,1750258159047,-500.0,0.00021917,6]
[366445564,1750258159070,-460.0,0.00021917,6]
[366445565,1750258159092,-460.0,0.00021917,6]
[366445566,1750258159116,-460.0,0.00021917,6]
[366445567,1750258159146,-673.17,0.00021917,6]
[366445568,1750258159170,-460.0,0.00021917,6]
[366445569,1750258159192,-406.27263577,0.00021917,6]
[366445570,1750258159218,-460.0,0.00021917,6]
[366445571,1750258159240,-460.0,0.00021917,6]
[366445572,1750258159264,-460.0,0.00021917,6]
[366445573,1750258159287,-460.0,0.00021917,6]
[366445574,1750258159310,-460.0,0.00021917,6]
[366445575,1750258159332,-460.0,0.00021917,6]
[366445576,1750258159354,-267.8,0.00021917,6]
[366445577,1750258159376,-460.0,0.00021917,6]
[366445578,1750258159399,-460.0,0.00021917,6]
[366445579,1750258159422,-460.0,0.00021917,6]
[366445580,1750258159444,-460.0,0.00021917,6]
[366445581,1750258159468,-460.0,0.00021917,6]
[366445582,1750258159490,-460.0,0.00021917,6]
[366445583,1750258159512,-460.0,0.00021917,6]
[366445584,1750258159535,-855.34,0.00021917,6]
[366445585,1750258159557,-440.0,0.00021917,6]
[366445586,1750258159579,-460.0,0.00021917,6]
[366445587,1750258159600,-471.10635565,0.00021917,6]
[366445588,1750258159624,-460.0,0.00021917,6]
[366445589,1750258159645,-327.28419904,0.00021917,6]
[366445590,1750258159666,-460.0,0.00021917,6]
[366445591,1750258159690,-460.0,0.00021917,6]
[366445592,1750258159714,-956.11,0.00021917,6]
[366445593,1750258159735,-460.0,0.00021917,6]
[366445594,1750258159757,-460.0,0.00021917,6]
[366445595,1750258159778,-462.49832748,0.00021917,6]
[366445596,1750258159801,-460.0,0.00021917,6]
[366445597,1750258159825,-460.0,0.00021917,6]
[366445598,1750258159846,-460.0,0.00021917,6]
[366445599,1750258159873,-1104.82,0.00021917,6]
[366445600,1750258159897,-910.45,0.00021917,6]
[366445601,1750258159919,-460.0,0.00021917,6]
[366445602,1750258159943,-460.0,0.00021917,6]
[366445603,1750258159964,-460.0,0.00021917,6]
[366445604,1750258159985,-460.0,0.00021917,6]
[366445605,1750258160005,-460.0,0.00021917,6]
[366445606,1750258160029,-460.0,0.00021917,6]
[366445607,1750258160050,-460.0,0.00021917,6]
[366445608,1750258160071,-460.0,0.00021917,6]
[366445609,1750258160091,-460.0,0.00021917,6]
[366445610,1750258160114,-460.0,0.00021917,6]
[366445611,1750258160136,-460.0,0.00021917,6]
[366445612,1750258160158,-510.68514741,0.00021917,6]
[366445613,1750258160181,-460.0,0.00021917,6]
[366445614,1750258160203,-460.0,0.00021917,6]
[366445615,1750258160226,-460.0,0.00021917,6]
[366445616,1750258160247,-507.98986806,0.00021917,6]
[366445617,1750258160270,-460.0,0.00021917,6]
[366445618,1750258160293,-460.0,0.00021917,6]
[366445619,1750258160316,-368.13971711,0.00021917,6]
[366445620,1750258160341,-460.0,0.00021917,6]
[366445621,1750258160364,-460.0,0.00021917,6]
[366445622,1750258160386,-460.0,0.00021917,6]
[366445623,1750258160409,-465.31775036,0.00021917,6]
[366445624,1750258160432,-460.0,0.00021917,6]
[366445625,1750258160454,-309.26940035,0.00021917,6]
[366445626,1750258160479,-512.43,0.00021917,6]
[366445627,1750258160501,-410.0,0.00021917,6]
[366445628,1750258160523,-460.0,0.00021917,6]
[366445629,1750258160544,-200.0,0.00021917,6]
[366445630,1750258160566,-418.04874256,0.00021917,6]
[366445631,1750258160588,-460.0,0.00021917,6]
[366445632,1750258160608,-500.0,0.00021917,2]
[366445633,1750258160630,-217.5837166,0.00021917,6]
[366445634,1750258160650,-460.0,0.00021917,6]
[366445635,1750258160672,-460.0,0.00021917,6]
[366445636,1750258160695,-593.08,0.00021917,6]
[366445637,1750258160716,-460.0,0.00021917,6]
[366445638,1750258160737,-500.0,0.00021963,2]
[366445639,1750258160757,-505.94149795,0.00021973,2]
[366445640,1750258160781,-153.08324004,0.00021973,2]
[366445641,1750258160803,-620.11797295,0.00021973,2]
[366445642,1750258160824,-425.5250504,0.00021973,2]
[366445643,1750258160845,-500.0,0.00021973,2]
[366445644,1750258160868,-306.53721605,0.00021973,2]
[366445645,1750258160888,-505.65725866,0.00021973,2]
[366445646,1750258160908,-178.0,0.00022,2]
[366445647,1750258160929,-167.0,0.00022,2]
[366445648,1750258160951,-1000.0,0.00022,22]
[366445649,1750258160979,-1092.89151326,0.00022038,6]
[366445650,1750258161000,-672.56,0.00022147,3]
[366445651,1750258161022,-270.36,0.00022156,3]
[366445652,1750258161044,-811.12,0.00022156,3]
[366445653,1750258161064,-5000.0,0.00022157,2]
[366445654,1750258161090,-207.4,0.00022166,2]
[366445655,1750258161115,-1688.0,0.00022166,2]
[366445656,1750258161136,-5000.0,0.00022166,2]
[366445657,1750258161158,-3658.82932813,0.00022166,2]
[366445658,1750258161181,-25000.0,0.00022166,2]
[366445659,1750258161203,-17868.64831762,0.00022166,2]
[366445660,1750258161224,-500.0,0.00022173,2]
[366445661,1750258161244,-501.06245016,0.00022173,2]
[366445662,1750258161266,-500.0,0.00022173,2]
[366445663,1750258161287,-500.0,0.00022173,2]
[366445664,1750258161308,-500.0,0.00022173,2]
[366445665,1750258161328,-516.93256002,0.00022173,2]
[366445666,1750258161349,-500.0,0.00022173,2]
[366445667,1750258161369,-446.53826026,0.00022173,2]
[366445668,1750258161390,-500.0,0.00022173,2]
[366445669,1750258161410,-600.0,0.00022173,2]
[366445670,1750258161431,-500.0,0.00022173,2]
[366445671,1750258161451,-500.0,0.00022173,2]
[366445672,1750258161470,-502.62722475,0.00022173,2]
[366445673,1750258161490,-335.88837023,0.00022173,2]
[366445674,1750258161511,-306.27553398,0.00022173,2]
[366445675,1750258161530,-485.1128882,0.00022173,2]
[366445676,1750258161552,-500.0,0.00022173,2]
[366445677,1750258161573,-500.0,0.00022173,2]
[366445678,1750258161595,-500.0,0.00022173,2]
[366445679,1750258161623,-1092.89151326,0.00022176,6]
[366445680,1750258161645,-540.73,0.00022181,3]
[366445681,1750258161666,-460.0,0.00022191,6]
[366445682,1750258161688,-404.15063235,0.00022191,6]
[366445683,1750258161708,-460.0,0.00022191,6]
[366445684,1750258161730,-424.9650049,0.00022191,6]
[366445685,1750258161752,-460.0,0.00022191,6]
[366445686,1750258161774,-461.99,0.00022191,6]
[366445687,1750258161798,-460.0,0.00022191,6]
[366445688,1750258161821,-380.0,0.00022191,6]
[366445689,1750258161843,-460.0,0.00022191,6]
[366445690,1750258161865,-161.0,0.00022191,6]
[366445691,1750258161987,-460.0,0.00022191,6]
[366445692,1750258162009,-230.0,0.00022191,6]
[366445693,1750258162033,-460.0,0.00022191,6]
[366445694,1750258162055,-460.0,0.00022191,6]
[366445695,1750258162076,-460.0,0.00022191,6]
[366445696,1750258162097,-460.0,0.00022191,6]
[366445697,1750258162120,-226.58,0.00022191,6]
[366445698,1750258162143,-460.0,0.00022191,6]
[366445699,1750258162165,-460.0,0.00022191,6]
[366445700,1750258162189,-1610.2,0.00022191,6]
[366445701,1750258162211,-460.0,0.00022191,6]
[366445702,1750258162235,-698.41,0.00022191,6]
[366445703,1750258162258,-460.0,0.00022191,6]
[366445704,1750258162282,-304.78658478,0.00022191,6]
[366445705,1750258162305,-460.0,0.00022191,6]
[366445706,1750258162330,-673.17,0.00022191,6]
[366445707,1750258162352,-460.0,0.00022191,6]
[366445708,1750258162375,-460.0,0.00022191,6]
[366445709,1750258162397,-460.0,0.00022191,6]
[366445710,1750258162418,-460.0,0.00022191,6]
[366445711,1750258162442,-460.0,0.00022191,6]
[366445712,1750258162464,-460.0,0.00022191,6]
[366445713,1750258162489,-855.34,0.00022191,6]
[366445714,1750258162511,-460.0,0.00022191,6]
[366445715,1750258162534,-956.11,0.00022191,6]
[366445716,1750258162556,-460.0,0.00022191,6]
[366445717,1750258162580,-1104.82,0.00022191,6]
[366445718,1750258162602,-910.45,0.00022191,6]
[366445719,1750258162625,-460.0,0.00022191,6]
[366445720,1750258162647,-460.0,0.00022191,6]
[366445721,1750258162670,-460.0,0.00022191,6]
[366445722,1750258162693,-460.0,0.00022191,6]
[366445723,1750258162714,-460.0,0.00022191,6]
[366445724,1750258162736,-460.0,0.00022191,6]
[366445725,1750258162758,-460.0,0.00022191,6]
[366445726,1750258162783,-460.0,0.00022191,6]
[366445727,1750258162807,-460.0,0.00022191,6]
[366445728,1750258162831,-460.0,0.00022191,6]
[366445729,1750258162853,-460.0,0.00022191,6]
[366445730,1750258162878,-321.35085523,0.00022191,6]
[366445731,1750258162900,-512.43,0.00022191,6]
[366445732,1750258162922,-460.0,0.00022191,6]
[366445733,1750258162946,-460.0,0.00022191,6]
[366445734,1750258162970,-460.0,0.00022191,6]
[366445735,1750258162993,-593.08,0.00022191,6]
[366445736,1750258163014,-247.13,0.000222,7]
[366445737,1750258163034,-721.75,0.000222,7]
[366445738,1750258163056,-12542.39314967,0.000222,7]
[366445739,1750258163078,-54106.77,0.000222,7]
[366445740,1750258163100,-1750.456,0.00022221,2]
[366445741,1750258163123,-444.46851045,0.00022241,2]
[366445742,1750258163147,-1815.222872,0.00022276,2]
[366445743,1750258163177,-1092.89151326,0.00022314,7]
[366445744,1750258163201,-1882.38611826,0.00022331,2]
[366445745,1750258163223,-1669.53512149,0.00022386,2]
[366445746,1750258163255,-1092.89151326,0.00022452,7]
[366445747,1750258163277,-500.0,0.00022464,3]
[366445748,1750258163299,-448.4848997,0.00022465,6]
[366445749,1750258163321,-460.0,0.00022465,6]
[366445750,1750258163343,-544.42871805,0.00022465,6]
[366445751,1750258163365,-312.22,0.00022465,6]
[366445752,1750258163388,-460.0,0.00022465,6]
[366445753,1750258163412,-1610.2,0.00022465,6]
[366445754,1750258163437,-698.41,0.00022465,6]
[366445755,1750258163460,-460.0,0.00022465,6]
[366445756,1750258163482,-460.0,0.00022465,6]
[366445757,1750258163505,-673.17,0.00022465,6]
[366445758,1750258163526,-211.49,0.00022465,6]
[366445759,1750258163547,-460.0,0.00022465,6]
[366445760,1750258163567,-460.0,0.00022465,6]
[366445761,1750258163590,-855.34,0.00022465,6]
[366445762,1750258163611,-529.04,0.00022465,6]
[366445763,1750258163633,-956.11,0.00022465,6]
[366445764,1750258163657,-1104.82,0.00022465,6]
[366445765,1750258163681,-872.6923971,0.00022465,6]
[366445767,1750258172102,-12542.39314967,0.0002118,2]
[366445768,1750258172125,-70.67677742,0.00021917,6]
[366445884,1750258210066,1000.0,0.00024,120]
[366445885,1750258213521,1000.0,0.00024,120]
[366445900,1750258232216,-1031.59,0.00019872,2]
[366445901,1750258232227,-1513.37982832,0.00021229,2]
[366445902,1750258232240,-3158.13978318,0.00021229,2]
[366445903,1750258232250,-2063.18,0.00021679,2]
[366445904,1750258232260,-300.0,0.00021916,2]
[366445905,1750258232269,-389.32322258,0.00021917,6]
[366445906,1750258232280,-460.0,0.00021917,6]
[366445907,1750258232290,-258.1015585,0.00021917,6]
[366445908,1750258232299,-460.0,0.00021917,6]
[366445909,1750258232309,-469.80510097,0.00021917,6]
[366445910,1750258232318,-527.09,0.00021917,6]
[366445911,1750258232328,-670.94,0.00021917,6]
[366445912,1750258232337,-1037.99,0.00021917,6]
[366445913,1750258232347,-460.0,0.00021917,6]
[366445914,1750258232356,-469.78,0.00021917,6]
[366445915,1750258232366,-1620.59,0.00021917,6]
[366445916,1750258232375,-460.0,0.00021917,6]
[366445917,1750258232384,-460.0,0.00021917,6]
[366445918,1750258232394,-207.4,0.00022166,2]
[366445920,1750258232403,-5000.0,0.00022166,2]
[366445921,1750258232412,-500.0,0.00022173,2]
[366445922,1750258232421,-501.03025202,0.00022173,2]
[366445923,1750258232431,-500.75723456,0.00022173,2]
[366445925,1750258232441,-501.40766852,0.00022173,2]
[366445927,1750258232451,-500.69668845,0.00022173,2]
[366445929,1750258232461,-132.34831434,0.00022173,2]
[366445932,1750258232473,-127.37102204,0.00022173,2]
[366445935,1750258232485,-500.0,0.00022173,2]
[366445937,1750258232495,-629.63536797,0.00022173,2]
[366445939,1750258232504,-501.11962338,0.00022173,2]
[366445942,1750258232513,-500.0,0.00022173,2]
[366445944,1750258232522,-508.47803983,0.00022173,2]
[366445946,1750258232531,-500.59286604,0.00022173,2]
[366445948,1750258232541,-500.0,0.00022173,2]
[366445950,1750258232550,-432.30307574,0.00022173,2]
[366445952,1750258232562,-67.69692426,0.00022173,2]
[366445954,1750258232571,-500.0,0.00022173,2]
[366445956,1750258232581,-460.0,0.00022191,6]
[366445958,1750258232590,-460.0,0.00022191,6]
[366445961,1750258232599,-670.94,0.00022191,6]
[366445964,1750258232609,-1037.99,0.00022191,6]
[366445967,1750258232618,-460.0,0.00022191,6]
[366445969,1750258232628,-469.78,0.00022191,6]
[366445971,1750258232638,-1620.59,0.00022191,6]
[366445973,1750258232647,-470.00230403,0.00022191,6]
[366445975,1750258232657,-460.0,0.00022191,6]
[366445977,1750258232666,-37.7576029,0.00022465,6]
[366445979,1750258232676,-460.0,0.00022465,6]
[366445981,1750258232686,-460.0,0.00022465,6]
[366445983,1750258232696,-460.0,0.00022465,6]
[366445985,1750258232705,-460.0,0.00022465,6]
[366445987,1750258232715,-460.0,0.00022465,6]
[366445989,1750258232725,-460.0,0.00022465,6]
[366445992,1750258232735,-460.0,0.00022465,6]
[366445993,1750258232744,-460.0,0.00022465,6]
[366445996,1750258232754,-460.0,0.00022465,6]
[366445997,1750258232764,-512.43,0.00022465,6]
[366445999,1750258232773,-460.0,0.00022465,6]
[366446000,1750258232782,-600.5,0.00022465,6]